fUSD/lending_fUSD_20250204
["ID","MTS","AMOUNT","RATE_DAILY","PERIOD"]
[351659089,1738693805386,15670.0,0.00018886,120]
[351659099,1738693832389,-996.98,8.219e-05,2]
[351659101,1738693832398,-300.0,8.799e-05,2]
[351659103,1738693832409,-6915.47324548,8.8e-05,2]
[351659104,1738693832627,-14195.09562726,8.8e-05,2]
[351659105,1738693832648,-10201.36255214,8.8e-05,2]
[351659106,1738693832658,-430.5761,8.973e-05,2]
[351659107,1738693832668,-420.0,9.679e-05,2]
[351659108,1738693832678,-1000.0,9.738e-05,2]
[351659109,1738693832689,-1111.51457786,9.863e-05,2]
[351659110,1738693832702,-614.93542214,9.863e-05,2]
[351659111,1738693832711,-500.0,9.998e-05,2]
[351659112,1738693832721,-500.0,9.998e-05,2]
[351659113,1738693832731,-500.0,9.998e-05,2]
[351659114,1738693832741,-500.0,9.998e-05,2]
[351659115,1738693832752,-592.39,9.998e-05,2]
[351659116,1738693832762,-210.49,9.998e-05,2]
[351659117,1738693832771,-403.55,9.998e-05,2]
[351659118,1738693832782,-500.0,9.998e-05,2]
[351659119,1738693832793,-500.0,9.998e-05,2]
[351659120,1738693832804,-374.75,9.998e-05,2]
[351659121,1738693832814,-427.71,9.998e-05,2]
[351659122,1738693832825,-604.84,9.998e-05,2]
[351659123,1738693832835,-584.96,9.998e-05,2]
[351659124,1738693832846,-568.65,9.998e-05,2]
[351659125,1738693832857,-578.04,9.998e-05,2]
[351659126,1738693832869,-606.98,9.998e-05,2]
[351659127,1738693832880,-332.2,9.998e-05,2]
[351659128,1738693832889,-1613.88965176,9.998e-05,2]
[351659129,1738693832899,-500.0,9.998e-05,2]
[351659130,1738693832910,-190.3014991,9.998e-05,2]
[351659131,1738693832921,-500.0,9.998e-05,2]
[351659132,1738693832933,-225.97,9.999e-05,2]
[351659133,1738693832944,-528.09,9.999e-05,2]
[351659134,1738693832954,-500.0,9.999e-05,2]
[351659135,1738693832965,-252.55,9.999e-05,2]
[351659136,1738693832975,-252.14,9.999e-05,2]
[351659137,1738693832985,-579.76,9.999e-05,2]
[351659138,1738693832996,-517.55,9.999e-05,2]
[351659139,1738693833006,-161.72,9.999e-05,2]
[351659140,1738693833015,-500.0,9.999e-05,2]
[351659141,1738693833025,-500.0,9.999e-05,2]
[351659142,1738693833036,-500.0,9.999e-05,2]
[351659143,1738693833046,-500.0,9.999e-05,2]
[351659144,1738693833055,-500.0,9.999e-05,2]
[351659145,1738693833065,-500.0,9.999e-05,2]
[351659146,1738693833074,-500.0,9.999e-05,2]
[351659170,1738693833335,-500.0,9.999e-05,2]
[351659173,1738693833345,-500.0,9.999e-05,2]
[351659176,1738693833356,-500.0,9.999e-05,2]
[351659179,1738693833366,-187.93,9.999e-05,2]
[351659183,1738693833382,-500.0,9.999e-05,2]
[351659186,1738693833392,-500.0,9.999e-05,2]
[351659188,1738693833401,-363.2289665,9.999e-05,2]
[351659192,1738693833413,-136.7710335,9.999e-05,2]
[351659195,1738693833423,-500.0,9.999e-05,2]
[351659198,1738693833433,-500.0,9.999e-05,2]
[351659201,1738693833443,-500.0,9.999e-05,2]
[351659204,1738693833452,-311.76387073,9.999e-05,2]
[351659209,1738693833471,-188.23612927,9.999e-05,2]
[351659212,1738693833481,-68.04623199,9.999e-05,2]
[351659215,1738693833494,-139.79376801,9.999e-05,2]
[351659218,1738693833509,-500.0,9.999e-05,2]
[351659221,1738693833519,-500.0,9.999e-05,2]
[351659224,1738693833531,-689.86,9.999e-05,2]
[351659227,1738693833541,-500.0,9.999e-05,2]
[351659230,1738693833551,-500.0,9.999e-05,2]
[351659232,1738693833561,-427.94623206,9.999e-05,2]
[351659234,1738693833573,-72.05376794,9.999e-05,2]
[351659236,1738693833583,-500.0,9.999e-05,2]
[351659239,1738693833596,-619.06,9.999e-05,2]
[351659241,1738693833606,-500.0,9.999e-05,2]
[351659243,1738693833616,-500.0,9.999e-05,2]
[351659245,1738693833625,-500.0,9.999e-05,2]
[351659247,1738693833635,-500.0,9.999e-05,2]
[351659249,1738693833644,-500.0,9.999e-05,2]
[351659251,1738693833654,-500.0,9.999e-05,2]
[351659253,1738693833663,-500.0,9.999e-05,2]
[351659254,1738693833673,-500.0,9.999e-05,2]
[351659256,1738693833682,-446.48623202,9.999e-05,2]
[351659259,1738693833701,-134.74031798,9.999e-05,2]
[351659261,1738693833710,-626.86,9.999e-05,2]
[351659263,1738693833720,-500.0,9.999e-05,2]
[351659265,1738693833730,-500.0,9.999e-05,2]
[351659267,1738693833740,-500.0,9.999e-05,2]
[351659269,1738693833750,-500.0,9.999e-05,2]
[351659271,1738693833760,-339.19,9.999e-05,2]
[351659273,1738693833769,-277.78,9.999e-05,2]
[351659275,1738693833782,-5062.52968205,0.0001,2]
[351659278,1738693833797,-309.0,0.0001,2]
[351659280,1738693833808,-393.04398086,0.0001,2]
[351659282,1738693833821,-257187.75902444,0.0001,2]
[351659284,1738693833831,-233227.41232822,0.0001,2]
[351659286,1738693833840,-500.0,0.00010135,2]
[351659288,1738693833850,-1726.45,0.00010136,2]
[351659290,1738693833860,-500.0,0.00010136,2]
[351659292,1738693833869,-320.39329175,0.00010136,2]
[351659294,1738693833879,-500.0,0.00010136,2]
[351659296,1738693833888,-500.0,0.00010136,2]
[351659298,1738693833898,-500.0,0.00010136,2]
[351659300,1738693833908,-500.0,0.00010136,2]
[351659302,1738693833918,-500.0,0.00010136,2]
[351659304,1738693833928,-500.0,0.00010136,2]
[351659306,1738693833937,-500.0,0.00010136,2]
[351659308,1738693833952,-500.0,0.00010136,2]
[351659310,1738693833969,-500.0,0.00010136,2]
[351659312,1738693833981,-500.0,0.00010136,2]
[351659314,1738693833995,-500.0,0.00010136,2]
[351659316,1738693834009,-689.86,0.00010136,2]
[351659318,1738693834020,-500.0,0.00010136,2]
[351659320,1738693834031,-500.0,0.00010136,2]
[351659322,1738693834043,-619.06,0.00010136,2]
[351659324,1738693834054,-242.46283828,0.00010136,2]
[351659326,1738693834064,-500.0,0.00010136,2]
[351659328,1738693834075,-500.0,0.00010136,2]
[351659330,1738693834085,-500.0,0.00010136,2]
[351659332,1738693834094,-581.22655,0.00010136,2]
[351659334,1738693834104,-500.0,0.00010136,2]
[351659336,1738693834114,-968.1,0.00010137,2]
[351659338,1738693834123,-169.62,0.00010272,2]
[351659340,1738693834133,-500.0,0.00010273,2]
[351659342,1738693834143,-500.0,0.00010273,2]
[351659344,1738693834152,-642.76616091,0.00010273,2]
[351659346,1738693834161,-500.0,0.00010273,2]
[351659348,1738693834171,-500.0,0.00010273,2]
[351659350,1738693834180,-500.0,0.00010273,2]
[351659352,1738693834190,-500.0,0.00010273,2]
[351659354,1738693834200,-500.0,0.00010273,2]
[351659356,1738693834209,-500.0,0.00010273,2]
[351659358,1738693834219,-500.0,0.00010273,2]
[351659360,1738693834228,-383.54949155,0.00010273,2]
[351659362,1738693834239,-689.86,0.00010273,2]
[351659364,1738693834249,-500.0,0.00010273,2]
[351659366,1738693834259,-475.8097671,0.00010273,2]
[351659368,1738693834268,-619.06,0.00010273,2]
[351659370,1738693834278,-500.0,0.00010273,2]
[351659372,1738693834289,-500.0,0.00010273,2]
[351659373,1738693834299,-500.0,0.00010273,2]
[351659375,1738693834308,-581.22655,0.00010273,2]
[351659377,1738693834318,-500.0,0.00010273,2]
[351659379,1738693834327,-1613.88965175,0.00010298,2]
[351659382,1738693834338,-370.69,0.00010409,2]
[351659383,1738693834348,-1726.45,0.0001041,2]
[351659386,1738693834357,-500.0,0.0001041,2]
[351659387,1738693834366,-500.0,0.0001041,2]
[351659390,1738693834376,-500.0,0.0001041,2]
[351659392,1738693834386,-500.0,0.0001041,2]
[351659394,1738693834396,-500.0,0.0001041,2]
[351659395,1738693834405,-500.0,0.0001041,2]
[351659397,1738693834415,-500.0,0.0001041,2]
[351659399,1738693834424,-500.0,0.0001041,2]
[351659402,1738693834434,-500.0,0.0001041,2]
[351659403,1738693834443,-689.86,0.0001041,2]
[351659405,1738693834453,-500.0,0.0001041,2]
[351659408,1738693834462,-619.06,0.0001041,2]
[351659409,1738693834471,-500.0,0.0001041,2]
[351659411,1738693834480,-500.0,0.0001041,2]
[351659413,1738693834493,-500.0,0.0001041,2]
[351659415,1738693834503,-581.22655,0.0001041,2]
[351659417,1738693834513,-500.0,0.0001041,2]
[351659419,1738693834523,-2023.0,0.00010426,2]
[351659421,1738693834534,-1272.0,0.00010426,2]
[351659423,1738693834543,-150.0,0.00010426,2]
[351659425,1738693834554,-996.98,0.00010467,2]
[351659427,1738693834565,-500.0,0.00010547,2]
[351659429,1738693834576,-500.0,0.00010547,2]
[351659431,1738693834586,-500.0,0.00010547,2]
[351659433,1738693834596,-642.87174595,0.00010547,2]
[351659435,1738693834605,-500.0,0.00010547,2]
[351659437,1738693834614,-500.0,0.00010547,2]
[351659439,1738693834624,-500.0,0.00010547,2]
[351659442,1738693834634,-500.0,0.00010547,2]
[351659443,1738693834644,-500.0,0.00010547,2]
[351659445,1738693834654,-689.86,0.00010547,2]
[351659447,1738693834664,-547.23567077,0.00010547,2]
[351659449,1738693834673,-619.06,0.00010547,2]
[351659451,1738693834683,-500.0,0.00010547,2]
[351659453,1738693834692,-500.0,0.00010547,2]
[351659455,1738693834702,-500.0,0.00010547,2]
[351659457,1738693834711,-581.22655,0.00010547,2]
[351659459,1738693834720,-500.0,0.00010547,2]
[351659461,1738693834730,-587.0,0.00010647,2]
[351659463,1738693834739,-1726.45,0.00010684,2]
[351659465,1738693834749,-500.0,0.00010684,2]
[351659468,1738693834762,-500.0,0.00010684,2]
[351659470,1738693834772,-500.0,0.00010684,2]
[351659472,1738693834783,-500.0,0.00010684,2]
[351659474,1738693834793,-500.0,0.00010684,2]
[351659476,1738693834803,-500.0,0.00010684,2]
[351659478,1738693834812,-500.0,0.00010684,2]
[351659480,1738693834822,-500.0,0.00010684,2]
[351659482,1738693834831,-689.86,0.00010684,2]
[351659484,1738693834841,-619.06,0.00010684,2]
[351659486,1738693834851,-500.0,0.00010684,2]
[351659488,1738693834860,-500.0,0.00010684,2]
[351659490,1738693834870,-500.0,0.00010684,2]
[351659492,1738693834879,-581.22655,0.00010684,2]
[351659494,1738693834889,-500.0,0.00010684,2]
[351659496,1738693834899,-1613.88965175,0.00010699,2]
[351659498,1738693834909,-150.99,0.00010773,2]
[351659500,1738693834919,-500.0,0.00010821,2]
[351659501,1738693834929,-500.0,0.00010821,2]
[351659502,1738693834939,-500.0,0.00010821,2]
[351659503,1738693834948,-500.0,0.00010821,2]
[351659504,1738693834958,-500.0,0.00010821,2]
[351659505,1738693834967,-500.0,0.00010821,2]
[351659506,1738693834977,-500.0,0.00010821,2]
[351659507,1738693834988,-500.0,0.00010821,2]
[351659508,1738693834997,-689.86,0.00010821,2]
[351659509,1738693835008,-619.06,0.00010821,2]
[351659510,1738693835018,-500.0,0.00010821,2]
[351659511,1738693835027,-500.0,0.00010821,2]
[351659512,1738693835038,-500.0,0.00010821,2]
[351659513,1738693835048,-581.22655,0.00010821,2]
[351659514,1738693835058,-500.0,0.00010821,2]
[351659515,1738693835068,-1000.0,0.00010876,2]
[351659516,1738693835078,-2300.0,0.00010876,2]
[351659517,1738693835088,-1000.0,0.00010955,2]
[351659518,1738693835098,-1726.45,0.00010958,2]
[351659519,1738693835108,-500.0,0.00010958,2]
[351659520,1738693835117,-500.0,0.00010958,2]
[351659521,1738693835127,-500.0,0.00010958,2]
[351659522,1738693835136,-500.0,0.00010958,2]
[351659523,1738693835146,-500.0,0.00010958,2]
[351659524,1738693835156,-500.0,0.00010958,2]
[351659525,1738693835166,-500.0,0.00010958,2]
[351659526,1738693835176,-500.0,0.00010958,2]
[351659527,1738693835186,-689.86,0.00010958,2]
[351659528,1738693835196,-619.06,0.00010958,2]
[351659529,1738693835206,-500.0,0.00010958,2]
[351659530,1738693835215,-500.0,0.00010958,2]
[351659531,1738693835225,-500.0,0.00010958,2]
[351659532,1738693835235,-581.22655,0.00010958,2]
[351659533,1738693835245,-500.0,0.00010958,2]
[351659534,1738693835255,-150.0,0.00010959,2]
[351659535,1738693835265,-334.32321871,0.00010992,2]
[351659537,1738693835275,-500.0,0.00011092,2]
[351659539,1738693835285,-500.0,0.00011092,2]
[351659541,1738693835295,-259.87,0.00011092,2]
[351659543,1738693835304,-500.0,0.00011092,2]
[351659545,1738693835313,-408.18,0.00011092,2]
[351659547,1738693835323,-500.0,0.00011092,2]
[351659549,1738693835333,-500.0,0.00011092,2]
[351659551,1738693835342,-500.0,0.00011092,2]
[351659553,1738693835351,-530.6,0.00011092,2]
[351659555,1738693835360,-500.0,0.00011092,2]
[351659557,1738693835369,-500.0,0.00011092,2]
[351659559,1738693835378,-500.0,0.00011092,2]
[351659561,1738693835388,-500.0,0.00011092,2]
[351659563,1738693835397,-500.0,0.00011092,2]
[351659565,1738693835406,-500.0,0.00011092,2]
[351659567,1738693835415,-500.0,0.00011092,2]
[351659569,1738693835424,-500.0,0.00011092,2]
[351659571,1738693835435,-500.0,0.00011092,2]
[351659573,1738693835444,-500.0,0.00011092,2]
[351659575,1738693835453,-458.46,0.00011092,2]
[351659577,1738693835463,-267.28,0.00011092,2]
[351659579,1738693835473,-500.0,0.00011092,2]
[351659581,1738693835483,-500.0,0.00011092,2]
[351659583,1738693835493,-500.0,0.00011092,2]
[351659585,1738693835504,-500.0,0.00011092,2]
[351659587,1738693835513,-500.0,0.00011092,2]
[351659589,1738693835523,-228.76,0.00011092,2]
[351659591,1738693835533,-500.0,0.00011092,2]
[351659593,1738693835542,-500.0,0.00011092,2]
[351659595,1738693835552,-472.58675078,0.00011092,2]
[351659597,1738693835562,-518.580108,0.00011092,2]
[351659599,1738693835572,-500.0,0.00011092,2]
[351659601,1738693835581,-500.0,0.00011092,2]
[351659603,1738693835591,-500.0,0.00011092,2]
[351659605,1738693835600,-500.0,0.00011092,2]
[351659607,1738693835611,-500.0,0.00011092,2]
[351659609,1738693835621,-500.0,0.00011092,2]
[351659611,1738693835630,-500.0,0.00011092,2]
[351659613,1738693835640,-500.0,0.00011092,2]
[351659615,1738693835649,-500.0,0.00011092,2]
[351659617,1738693835659,-500.0,0.00011092,2]
[351659619,1738693835668,-500.0,0.00011092,2]
[351659621,1738693835678,-340.48,0.00011092,2]
[351659623,1738693835687,-500.0,0.00011092,2]
[351659625,1738693835697,-500.0,0.00011092,2]
[351659627,1738693835706,-500.0,0.00011092,2]
[351659629,1738693835715,-168.56,0.00011092,2]
[351659631,1738693835725,-500.0,0.00011092,2]
[351659633,1738693835734,-427.7,0.00011092,2]
[351659635,1738693835744,-500.0,0.00011092,2]
[351659637,1738693835754,-500.0,0.00011092,2]
[351659639,1738693835763,-500.0,0.00011092,2]
[351659641,1738693835773,-592.8,0.00011092,2]
[351659643,1738693835784,-500.0,0.00011092,2]
[351659645,1738693835793,-500.0,0.00011092,2]
[351659647,1738693835803,-500.0,0.00011092,2]
[351659649,1738693835812,-500.0,0.00011092,2]
[351659651,1738693835821,-500.0,0.00011092,2]
[351659653,1738693835831,-500.0,0.00011092,2]
[351659655,1738693835840,-500.0,0.00011092,2]
[351659657,1738693835849,-492.34,0.00011092,2]
[351659659,1738693835858,-560.09,0.00011092,2]
[351659661,1738693835868,-500.0,0.00011092,2]
[351659663,1738693835877,-500.0,0.00011092,2]
[351659665,1738693835887,-500.0,0.00011092,2]
[351659667,1738693835896,-501.09315215,0.00011092,2]
[351659669,1738693835905,-500.0,0.00011092,2]
[351659671,1738693835914,-500.0,0.00011092,2]
[351659673,1738693835923,-500.0,0.00011092,2]
[351659675,1738693835932,-500.0,0.00011092,2]
[351659677,1738693835942,-500.0,0.00011092,2]
[351659679,1738693835951,-500.0,0.00011092,2]
[351659681,1738693835960,-500.0,0.00011092,2]
[351659683,1738693835969,-500.0,0.00011092,2]
[351659685,1738693835979,-500.0,0.00011092,2]
[351659687,1738693835987,-500.0,0.00011092,2]
[351659689,1738693835997,-500.0,0.00011092,2]
[351659691,1738693836006,-500.0,0.00011092,2]
[351659693,1738693836016,-500.0,0.00011092,2]
[351659694,1738693836025,-500.0,0.00011092,2]
[351659695,1738693836036,-500.0,0.00011092,2]
[351659696,1738693836045,-500.0,0.00011092,2]
[351659697,1738693836054,-500.0,0.00011092,2]
[351659698,1738693836064,-500.0,0.00011092,2]
[351659699,1738693836074,-500.0,0.00011092,2]
[351659700,1738693836086,-631.6,0.00011092,2]
[351659701,1738693836096,-500.0,0.00011092,2]
[351659702,1738693836109,-500.0,0.00011092,2]
[351659703,1738693836120,-500.0,0.00011092,2]
[351659704,1738693836133,-652.08,0.00011092,2]
[351659705,1738693836145,-500.0,0.00011092,2]
[351659706,1738693836158,-735.19,0.00011092,2]
[351659707,1738693836168,-235.16,0.00011092,2]
[351659708,1738693836179,-500.0,0.00011092,2]
[351659709,1738693836189,-500.0,0.00011092,2]
[351659710,1738693836200,-252.01,0.00011092,2]
[351659711,1738693836211,-500.0,0.00011092,2]
[351659712,1738693836222,-483.74,0.00011092,2]
[351659713,1738693836233,-500.0,0.00011092,2]
[351659714,1738693836245,-500.0,0.00011092,2]
[351659715,1738693836256,-500.0,0.00011092,2]
[351659716,1738693836267,-300.24,0.00011092,2]
[351659717,1738693836278,-500.0,0.00011092,2]
[351659718,1738693836292,-926.76,0.00011092,2]
[351659719,1738693836304,-500.0,0.00011092,2]
[351659720,1738693836315,-500.0,0.00011092,2]
[351659721,1738693836326,-585.6,0.00011092,2]
[351659722,1738693836338,-500.0,0.00011092,2]
[351659723,1738693836349,-500.0,0.00011092,2]
[351659724,1738693836359,-500.0,0.00011092,2]
[351659725,1738693836370,-500.0,0.00011092,2]
[351659726,1738693836381,-500.0,0.00011092,2]
[351659727,1738693836391,-349.88,0.00011092,2]
[351659728,1738693836400,-500.0,0.00011092,2]
[351659729,1738693836410,-500.0,0.00011092,2]
[351659730,1738693836422,-500.0,0.00011092,2]
[351659731,1738693836432,-500.0,0.00011092,2]
[351659732,1738693836444,-500.0,0.00011092,2]
[351659733,1738693836454,-500.0,0.00011092,2]
[351659734,1738693836465,-500.0,0.00011092,2]
[351659735,1738693836475,-500.0,0.00011092,2]
[351659736,1738693836486,-500.0,0.00011092,2]
[351659737,1738693836498,-500.0,0.00011092,2]
[351659738,1738693836509,-500.0,0.00011092,2]
[351659739,1738693836521,-518.76,0.00011092,2]
[351659740,1738693836534,-500.0,0.00011092,2]
[351659741,1738693836546,-500.0,0.00011092,2]
[351659742,1738693836557,-500.0,0.00011092,2]
[351659743,1738693836568,-1232.61,0.00011092,2]
[351659744,1738693836581,-248.75,0.00011092,2]
[351659745,1738693836593,-500.0,0.00011092,2]
[351659746,1738693836604,-489.6,0.00011092,2]
[351659747,1738693836616,-500.0,0.00011092,2]
[351659748,1738693836626,-500.0,0.00011092,2]
[351659749,1738693836638,-500.0,0.00011092,2]
[351659750,1738693836649,-500.0,0.00011092,2]
[351659751,1738693836661,-500.0,0.00011092,2]
[351659752,1738693836672,-286.25,0.00011092,2]
[351659753,1738693836684,-500.0,0.00011092,2]
[351659754,1738693836696,-500.0,0.00011092,2]
[351659755,1738693836708,-500.0,0.00011092,2]
[351659756,1738693836719,-500.0,0.00011092,2]
[351659757,1738693836731,-500.0,0.00011092,2]
[351659758,1738693836742,-500.0,0.00011092,2]
[351659759,1738693836754,-500.0,0.00011092,2]
[351659760,1738693836765,-500.0,0.00011092,2]
[351659761,1738693836778,-500.0,0.00011092,2]
[351659762,1738693836794,-551.64,0.00011092,2]
[351659763,1738693836804,-268.76,0.00011092,2]
[351659764,1738693836816,-500.0,0.00011092,2]
[351659765,1738693836828,-500.0,0.00011092,2]
[351659766,1738693836841,-500.0,0.00011092,2]
[351659767,1738693836852,-571.42,0.00011092,2]
[351659768,1738693836862,-500.0,0.00011092,2]
[351659769,1738693836873,-500.0,0.00011092,2]
[351659770,1738693836884,-271.16,0.00011092,2]
[351659771,1738693836894,-274.75,0.00011092,2]
[351659772,1738693836904,-1112.06,0.00011092,2]
[351659773,1738693836915,-538.86,0.00011092,2]
[351659774,1738693836927,-588.4,0.00011092,2]
[351659775,1738693836940,-325.6,0.00011092,2]
[351659776,1738693836952,-500.0,0.00011092,2]
[351659777,1738693836962,-500.0,0.00011092,2]
[351659778,1738693836973,-500.0,0.00011092,2]
[351659779,1738693836983,-500.0,0.00011092,2]
[351659780,1738693836993,-500.0,0.00011092,2]
[351659781,1738693837003,-500.0,0.00011092,2]
[351659782,1738693837013,-500.0,0.00011092,2]
[351659783,1738693837023,-500.0,0.00011093,2]
[351659784,1738693837037,-500.0,0.00011093,2]
[351659785,1738693837047,-363.74,0.00011093,2]
[351659786,1738693837059,-366.15,0.00011093,2]
[351659787,1738693837071,-500.0,0.00011093,2]
[351659788,1738693837082,-186.19,0.00011093,2]
[351659789,1738693837093,-500.0,0.00011093,2]
[351659790,1738693837103,-343.11698452,0.00011093,2]
[351659791,1738693837114,-425.89,0.00011093,2]
[351659792,1738693837123,-500.0,0.00011093,2]
[351659793,1738693837133,-500.0,0.00011093,2]
[351659794,1738693837143,-507.74337225,0.00011093,2]
[351659795,1738693837152,-449.37220268,0.00011093,2]
[351659796,1738693837162,-500.0,0.00011093,2]
[351659797,1738693837173,-500.0,0.00011093,2]
[351659798,1738693837183,-500.0,0.00011093,2]
[351659799,1738693837193,-500.0,0.00011093,2]
[351659800,1738693837203,-500.0,0.00011093,2]
[351659801,1738693837214,-500.0,0.00011093,2]
[351659802,1738693837225,-500.0,0.00011093,2]
[351659803,1738693837235,-500.0,0.00011093,2]
[351659804,1738693837245,-371.17430774,0.00011093,2]
[351659805,1738693837255,-500.0,0.00011093,2]
[351659806,1738693837266,-500.0,0.00011093,2]
[351659807,1738693837276,-500.0,0.00011093,2]
[351659808,1738693837291,-500.0,0.00011093,2]
[351659809,1738693837301,-500.0,0.00011093,2]
[351659810,1738693837312,-500.0,0.00011093,2]
[351659811,1738693837322,-500.0,0.00011093,2]
[351659812,1738693837332,-500.0,0.00011093,2]
[351659813,1738693837343,-500.0,0.00011093,2]
[351659814,1738693837353,-500.0,0.00011093,2]
[351659815,1738693837364,-500.0,0.00011093,2]
[351659816,1738693837376,-500.0,0.00011093,2]
[351659817,1738693837388,-500.0,0.00011093,2]
[351659818,1738693837398,-500.0,0.00011093,2]
[351659819,1738693837412,-272.89,0.00011093,2]
[351659820,1738693837422,-500.0,0.00011093,2]
[351659821,1738693837432,-500.0,0.00011093,2]
[351659822,1738693837442,-500.0,0.00011093,2]
[351659823,1738693837453,-500.0,0.00011093,2]
[351659824,1738693837464,-500.0,0.00011093,2]
[351659825,1738693837475,-500.0,0.00011093,2]
[351659826,1738693837485,-500.0,0.00011093,2]
[351659827,1738693837499,-500.0,0.00011093,2]
[351659828,1738693837511,-500.0,0.00011093,2]
[351659829,1738693837523,-500.0,0.00011093,2]
[351659830,1738693837536,-500.0,0.00011093,2]
[351659831,1738693837547,-500.0,0.00011093,2]
[351659832,1738693837557,-500.0,0.00011093,2]
[351659833,1738693837567,-238.47,0.00011093,2]
[351659834,1738693837581,-500.0,0.00011093,2]
[351659835,1738693837593,-500.0,0.00011093,2]
[351659836,1738693837606,-500.0,0.00011093,2]
[351659837,1738693837618,-500.0,0.00011093,2]
[351659838,1738693837630,-500.0,0.00011093,2]
[351659839,1738693837642,-500.0,0.00011093,2]
[351659840,1738693837653,-500.0,0.00011093,2]
[351659841,1738693837663,-500.0,0.00011093,2]
[351659842,1738693837674,-615.51850375,0.00011093,2]
[351659843,1738693837684,-500.0,0.00011093,2]
[351659844,1738693837694,-500.0,0.00011093,2]
[351659845,1738693837705,-500.0,0.00011093,2]
[351659846,1738693837715,-500.0,0.00011093,2]
[351659847,1738693837726,-500.0,0.00011093,2]
[351659848,1738693837736,-588.22101409,0.00011093,2]
[351659849,1738693837746,-500.0,0.00011093,2]
[351659850,1738693837757,-500.0,0.00011093,2]
[351659851,1738693837768,-500.0,0.00011093,2]
[351659852,1738693837779,-500.0,0.00011093,2]
[351659853,1738693837792,-500.0,0.00011093,2]
[351659854,1738693837802,-500.0,0.00011093,2]
[351659855,1738693837812,-500.0,0.00011093,2]
[351659856,1738693837822,-500.0,0.00011093,2]
[351659857,1738693837832,-500.0,0.00011093,2]
[351659858,1738693837843,-500.0,0.00011093,2]
[351659859,1738693837854,-500.0,0.00011093,2]
[351659860,1738693837866,-500.0,0.00011093,2]
[351659861,1738693837879,-501.12652695,0.00011093,2]
[351659862,1738693837890,-500.0,0.00011093,2]
[351659863,1738693837900,-433.01447085,0.00011093,2]
[351659864,1738693837912,-500.0,0.00011093,2]
[351659865,1738693837922,-500.0,0.00011093,2]
[351659866,1738693837934,-500.0,0.00011093,2]
[351659867,1738693837947,-500.0,0.00011093,2]
[351659868,1738693837960,-500.0,0.00011093,2]
[351659869,1738693837971,-203.09,0.00011093,2]
[351659870,1738693837982,-500.0,0.00011093,2]
[351659871,1738693837992,-375.91,0.00011093,2]
[351659872,1738693838003,-421.81,0.00011093,2]
[351659873,1738693838014,-500.0,0.00011093,2]
[351659874,1738693838025,-400.28,0.00011093,2]
[351659875,1738693838036,-500.0,0.00011093,2]
[351659876,1738693838047,-500.0,0.00011093,2]
[351659877,1738693838059,-500.0,0.00011093,2]
[351659878,1738693838071,-500.0,0.00011093,2]